[Event "99th Argentina-ch 2024"]
[Site "Buenos Aires"]
[Date "2024.11.26"]
[Round "1.6"]
[White "Perez Ponsa, Federico"]
[Black "Acosta, Pablo Ismael"]
[Result "1/2-1/2"]
[ECO "B31"]
[WhiteElo "2536"]
[BlackElo "2454"]
[Annotator "TA"]
[PlyCount "184"]
[EventDate "2024.11.15"]
[EventType "tourn"]
[EventCountry "ARG"]
[SourceTitle "playchess.com"]
[Source "ChessBase"]
[SourceQuality "1"]
[TimeControl "40/5400+30:1800+30"]

{[%evp 129,184,-541,-2004,-2220,-564,-5256,-4614,-5073,-3881,-29962,-1510,-29959,-29960,-5604,-29960,-29960,-29962,-29964,-29963,-29964,-29965,-29965,-29964,-29964,-29962,-29969,-29971,-29971,-29973,-29973,-29974,-29974,-29975,-29975,-29976,-29976,-29973,-29973,-29974,-29974,-29975,-29975,-29976,-29976,-5127,-5120,-5113,-29972,-29974,-29971,0,0,0,-29969,0,-8,0]} 1. e4 {[%emt 0:00:04]} c5 {[%emt 0:00:22]} 2. Nf3 {[%emt 0:00:24]} Nc6 {[%emt 0:00:17]} 3. Bb5 {[%emt 0:00:40]} g6 {[%emt 0:00:18]} 4. O-O {[%emt 0:00:58]} Bg7 {[%emt 0:00:57]} 5. c3 {[%emt 0:00:48]} Nf6 {[%emt 0:01:21]} 6. Re1 {[%emt 0:00:40]} O-O {[%emt 0:00:37]} 7. d4 {[%emt 0:01:42]} d5 {[%emt 0:01:58]} 8. e5 {[%emt 0:02:18]} Ne4 {[%emt 0:00:35]} 9. Bxc6 {[%emt 0:00:47]} bxc6 {[%emt 0:00:07]} 10. Be3 {[%emt 0:00:03] B31: Sicilian: 2...Nc6 3 Bb5 g6.} Qb6 {[%emt 0:03:04]} 11. Qc1 {[%emt 0:04:05]} c4 $1 {[%emt 0:05:35] 11...c4 is better than 11...cxd4.} 12. Nbd2 {[%emt 0:07:08]} Nxd2 {[%emt 0:04:43]} 13. Nxd2 {[%emt 0:04:31]} Bf5 {[%emt 0:01:00]} 14. b3 {[%emt 0:06:20]} Qa6 {[%emt 0:02:33]} 15. bxc4 $146 {[%emt 0:07:46]} ({Predecessor:} 15. a4 Bd3 16. Qa3 Rfe8 17. Bf4 e6 18. b4 Qb7 19. a5 Qe7 20. Nf3 h6 21. Qc1 {½-½ Hracek,Z (2542)-Maze,S (2530) Bundesliga 2223 2022 (10.3)}) 15... dxc4 {[%emt 0:01:35]} 16. Nf1 {[%emt 0:05:46]} Rab8 {[%emt 0:02:50]} 17. Ng3 {[%emt 0:05:22]} Bd3 {[%emt 0:01:38]} 18. Bh6 {[%emt 0:07:20]} c5 {[%emt 0:19:45]} 19. Bxg7 {[%emt 0:09:47]} Kxg7 {[%emt 0:00:15]} 20. d5 {[%emt 0:04:21]} h6 {[%emt 0:16:16]} 21. Qf4 {[%emt 0:03:21]} Rbd8 {[%emt 0:03:38]} 22. d6 {[%emt 0:02:21]} exd6 {[%emt 0:04:14]} 23. Qf6+ {[%emt 0:00:09]} Kh7 {[%emt 0:05:47]} 24. h4 {[%emt 0:08:59]} Qb6 {[%emt 0:01:40]} 25. e6 {[%emt 0:01:10]} fxe6 {[%emt 0:02:45]} 26. Qe7+ {[%emt 0:01:58]} Kg8 {[%emt 0:05:28]} 27. Qxe6+ {[%emt 0:06:27]} Rf7 {[%emt 0:02:32]} 28. h5 {[%emt 0:00:20]} d5 {[%emt 0:00:57]} 29. hxg6 {[%emt 0:03:10]} Qxe6 {[%emt 0:01:19]} 30. Rxe6 {[%emt 0:00:01]} Rg7 {[%emt 0:01:27]} 31. Rc6 {[%emt 0:00:14]} d4 {[%emt 0:01:10]} 32. Rc1 {[%emt 0:00:40]} Rxg6 {[%emt 0:03:55]} 33. Rxc5 {[%emt 0:00:24]} Ra6 {[%emt 0:02:46]} 34. cxd4 {[%emt 0:00:37]} Rxd4 {[%emt 0:00:52]} 35. Rc7 {[%emt 0:01:17]} Rdd6 {[%emt 0:00:45]} 36. Nh5 {[%emt 0:03:07]} Rxa2 {[%emt 0:02:17]} 37. Nf4 {[%emt 0:00:17]} Rda6 {[%emt 0:01:02]} 38. Nxd3 {[%emt 0:03:35]} cxd3 {[%emt 0:00:05]} 39. Rc8+ {[%emt 0:00:21]} Kf7 {[%emt 0:00:25]} 40. R1c7+ {[%emt 0:00:00]} Ke6 {[%emt 0:00:00]} 41. Re8+ {[%emt 0:01:12]} Kd6 {[%emt 0:07:50]} 42. Rh7 {[%emt 0:02:58]} Kc5 {[%emt 0:09:07]} 43. Rd7 {[%emt 0:00:42]} Rd2 {[%emt 0:02:15]} 44. Red8 {[%emt 0:04:53]} Kc4 {[%emt 0:01:22]} 45. Rc7+ {[%emt 0:00:26]} Kb4 {[%emt 0:01:51]} 46. Rb7+ {[%emt 0:00:25]} Kc4 {[%emt 0:00:34]} 47. Rc7+ {[%emt 0:00:18]} Kb3 {[%emt 0:02:28]} 48. Rb7+ {[%emt 0:00:13]} Ka2 {[%emt 0:04:38]} 49. Rbd7 {[%emt 0:02:18]} Ra3 {[%emt 0:01:25]} 50. f4 {[%emt 0:00:12]} Kb1 {[%emt 0:00:26]} 51. f5 {[%emt 0:00:13]} Raa2 {[%emt 0:00:42]} 52. Rg8 {[%emt 0:03:36]} Rd1+ {[%emt 0:00:24]} 53. Kh2 {[%emt 0:00:05]} Rf2 {[%emt 0:00:26]} 54. Rb8+ {[%emt 0:00:32]} Kc1 {[%emt 0:00:52]} 55. Rc7+ {[%emt 0:00:21]} Kd2 {[%emt 0:02:59]} 56. Rb2+ {[%emt 0:00:51]} Ke1 {[%emt 0:00:04]} 57. Re7+ {[%emt 0:01:12]} Kf1 {[%emt 0:00:24]} 58. Rxf2+ {[%emt 0:00:23]} Kxf2 {[%emt 0:00:03]} 59. f6 {[%emt 0:00:10]} d2 {[%emt 0:00:13]} 60. Rd7 {[%emt 0:00:18]} Ke3 {[%emt 0:00:42]} 61. Re7+ {[%emt 0:00:18]} Kd4 {[%emt 0:00:44]} 62. Rd7+ {[%emt 0:00:05]} Kc3 {[%emt 0:00:24]} 63. Rc7+ {[%emt 0:01:09]} Kb4 {[%emt 0:00:28]} 64. Rb7+ {[%emt 0:00:42]} Kc4 {[%emt 0:00:51]} 65. Rc7+ {[%emt 0:03:01] [#]} Kb5 $1 {[%emt 0:01:26]} 66. Rd7 {[%emt 0:00:15]} a5 {[%emt 0:00:39]} 67. f7 {[%emt 0:01:06]} Rf1 {[%emt 0:00:04]} 68. Rxd2 {[%emt 0:00:04]} Rxf7 {[%emt 0:00:07]} 69. Rd6 {[%emt 0:00:13]} Rh7 {[%emt 0:00:54]} (69... a4 $142 70. Rxh6 a3 71. Re6 Ra7 72. Re1 a2 73. Ra1 Ra3 74. g3 Ka4 75. Kh3 Kb3 76. Kg4 Kb2 77. Rh1 a1=Q (77... a1=B 78. Rf1 $11) 78. Rxa1 Rxa1 79. Kf5 Kc3 80. g4 Kd4 81. g5 Kd5 82. Kf6 Kd6 83. Kf5 Rg1 84. g6 Rg2 (84... Ke7 85. Ke5 Rxg6 86. Ke4 Ke6 87. Kf4 Kd5 88. Kf5 Re6 89. Kf4 Re2 90. Kf3 Re4 91. Kf2 Kd4 92. Kf3 Kd3 93. Kf2 Rf4+ 94. Kg2 Ke2 95. Kg3 Rd4 96. Kg2 Rd3 97. Kh1 Rg3 98. Kh2 Kf2 99. Kh1 Rh3#) 85. Ke4 Rxg6 86. Kf5 Re6 87. Kf4 Re5 88. Kf3 Ke6 89. Kg4 Rf5 90. Kg3 Kf6 91. Kh4 Rg5 92. Kh3 Kf5 93. Kh4 Kf4 94. Kh3 Kf3 95. Kh2 Rh5+ 96. Kg1 Rh8 97. Kf1 Rh1#) 70. Rf6 {[%emt 0:01:53]} a4 {[%emt 0:00:35]} 71. Rf5+ {[%emt 0:01:40]} Kb4 {[%emt 0:00:08]} (71... Kc4 $19 72. Rf4+ Kb3 73. Rf3+ Kc2 74. Rf2+ Kd1 75. Rf1+ Ke2) 72. Rf4+ {[%emt 0:00:05]} Kb3 {[%emt 0:00:39]} 73. Rf3+ {[%emt 0:00:05]} Kb2 {[%emt 0:00:47]} 74. Rf2+ {[%emt 0:00:02]} Kc1 {[%emt 0:01:22]} 75. Rf1+ {[%emt 0:00:02]} Kd2 {[%emt 0:00:27]} 76. Rf2+ {[%emt 0:00:14]} Ke1 {[%emt 0:00:19]} 77. Rf6 {[%emt 0:00:12]} Ra7 {[%emt 0:00:54]} 78. Rxh6 {[%emt 0:00:22]} a3 {[%emt 0:00:02]} 79. Re6+ {[%emt 0:00:06]} Kd2 {[%emt 0:00:23]} 80. Rd6+ {[%emt 0:00:05]} Kc3 {[%emt 0:00:40]} 81. Rc6+ {[%emt 0:00:12]} Kb4 {[%emt 0:00:46]} 82. Rb6+ {[%emt 0:00:07]} Kc5 {[%emt 0:00:37]} 83. Rb1 {[%emt 0:00:05]} a2 {[%emt 0:00:20]} 84. Ra1 {[%emt 0:00:01]} Kb4 {[%emt 0:00:16]} 85. Kg3 {[%emt 0:00:20]} Kb3 {[%emt 0:00:27]} 86. Kf4 {[%emt 0:00:12]} Rf7+ {[%emt 0:00:50]} (86... Kb2 $142 87. Rxa2+ Rxa2 88. g4 Kc3 89. Ke5 Rg2 90. Kf5 Kd4 91. g5 Kc5 92. Kf6 Kd6 93. Kf5 Ke7 94. Kf4 Ke6 95. Ke4 Rxg5 96. Ke3 Re5+ 97. Kd4 Kd6 98. Kc4 Rd5 99. Kb4 Rc5 100. Ka4 Rc4+ 101. Kb5 Rg4 102. Kb6 Rb4+ 103. Ka5 Kc5 104. Ka6 Kc6 105. Ka7 Ra4+ 106. Kb8 Ra6 107. Kc8 Ra8#) 87. Ke4 $19 {[%emt 0:00:35] [#]} Rg7 $1 {[%emt 0:00:07]} (87... Kb2 88. Rxa2+ Kxa2 89. g4 $11) 88. Kf3 {[%emt 0:00:06]} Kb2 {[%emt 0:00:14]} 89. Rd1 {[%emt 0:02:14]} Rf7+ $2 {[%emt 0:00:49]} (89... a1=B 90. g4 $11) (89... Rc7 90. g3 Rc1 (90... a1=B 91. g4 $11) (90... a1=Q 91. Rxa1 Kxa1 92. Kf4 $11) 91. Rd2+ Kb1 92. Rd7 a1=Q (92... a1=B 93. Rb7+ Kc2 94. Rh7 $11) 93. Rb7+ Kc2 94. Rc7+ Kd2 95. Rxc1 Qxc1 96. Kf4 Kd3+ 97. Kf5 Kd4 (97... Qe1 98. g4 Kd4 99. Kf6 Qe5+ 100. Kf7 Kd5 101. Kg6 Ke6 102. g5 Qg3 103. Kh5 Kf7 104. g6+ Kf6 105. Kh6 Qxg6#) 98. g4 Qc8+ 99. Kf6 Qxg4 100. Ke7 Ke5 101. Kf7 Qh5+ 102. Kg7 Ke6 103. Kg8 Kf6 104. Kf8 Qh8#) 90. Ke4 $1 $11 {[%emt 0:00:09]} Rg7 $2 {[%emt 0:00:47][%mdl 8192]} (90... Re7+ $11 91. Kf5 Rf7+ (91... a1=B 92. g4 $11) 92. Kg6 Rf4 (92... a1=R 93. Rxa1 Rf8 94. Ra7 $18)) 91. Kf3 $1 {[%emt 0:00:01]} Rf7+ $2 {[%emt 0:00:46]} ({Stronger than} 91... a1=B 92. g4 $11) (91... Rc7 {mates} 92. g4 Rc4 (92... a1=B 93. Re1 $11) (92... a1=Q 93. Rxa1 Kxa1 94. Kf4 $11) 93. Kg3 Ra4 (93... a1=B 94. Rf1 $11) (93... a1=Q 94. Rxa1 Kxa1 95. Kh4 $11) 94. Rh1 a1=Q (94... a1=B 95. g5 $11) (94... a1=R $2 95. Rh2+ Kc3 96. Kh4 $19) 95. Rxa1 Rxa1 96. Kf4 Kc3 97. Ke5 Rg1 98. Kf5 Kd4 99. g5 Kd5 100. Kf6 Kd6 101. Kf5 Ke7 102. g6 Kd6 103. Ke4 Rxg6 104. Kf4 Re6 105. Kf5 Re5+ 106. Kg4 Ke6 107. Kf4 Kf6 108. Kg3 Kg5 109. Kf3 Re6 110. Kg2 Kg4 111. Kf2 Re5 112. Kg2 Rf5 113. Kh1 Kh3 114. Kg1 Kg3 115. Kh1 Rf1#) 92. Ke4 $1 $11 {[%emt 0:00:02]} Rg7 {[%emt 0:00:06]} 1/2-1/2